bitfinex-derivatives/quotes_ETHF0:USTF0_20240910
["timestamp","ask_amount","ask_price","bid_price","bid_amount"]
[1725985265898,1.66310275,2334.5,2334.4,3.77834]
[1725985266594,1.87737581,2334.5,2334.4,3.35]
[1725985266794,1.87737581,2334.5,2334.4,3.77835]
[1725985267000,2.43174339,2334.6,2334.4,3.77835]
[1725985267192,0.21427306,2334.5,2334.4,3.77835]
[1725985267497,1.66284253,2334.5,2334.4,3.77835]
[1725985267688,1.87711559,2334.5,2334.4,3.77835]
[1725985267890,1.87737325,2334.5,2334.4,3.77835]
[1725985268497,1.87737325,2334.5,2334.4,3.99557734]
[1725985268699,1.66310019,2334.5,2334.4,9.35045734]
[1725985268888,1.10870745,2334.6,2334.5,0.42833]
[1725985269089,1.10870745,2334.6,2334.5,8.73105194]
[1725985269291,1.10870745,2334.7,2334.6,0.42831]
[1725985269691,1.10870745,2334.8,2334.7,0.42829]
[1725985269903,1.10870745,2334.8,2334.7,3.77829]
[1725985271090,2.04090019,2334.9,2334.8,0.42828]
[1725985271091,1.10870745,2334.9,2334.8,0.42828]
[1725985271288,1.10870745,2334.9,2334.8,4.71148]
[1725985271493,1.66310019,2335.0,2334.9,1.49891]
[1725985271494,1.10870745,2335.0,2334.9,1.49891]
[1725985271696,1.10870745,2335.1,2335.0,0.42824]
[1725985271893,1.66310019,2335.2,2335.1,0.42822]
[1725985271894,1.10870745,2335.2,2335.1,0.42822]
[1725985272097,1.10870745,2335.2,2335.1,3.77822]
[1725985272892,1.87730287,2335.3,2335.2,0.4282]
[1725985272893,1.66310019,2335.3,2335.2,0.4282]
[1725985273099,1.66339131,2335.3,2335.2,0.4282]
[1725985274304,1.10858079,2335.3,2335.2,0.4282]
[1725985275008,1.66339131,2335.3,2335.1,3.77821]
[1725985275302,1.10862149,2335.2,2335.1,3.77821]
[1725985275492,1.10862149,2335.2,2335.1,0.42821]
[1725985275696,1.10862149,2335.2,2335.0,3.35]
[1725985275902,1.10862149,2335.2,2334.8,3.35]
[1725985276206,1.10862149,2335.2,2335.1,0.42822]
[1725985276502,1.10862149,2335.3,2335.2,0.4282]
[1725985276901,1.85902149,2335.4,2335.3,0.42818]
[1725985277210,1.10862149,2335.6,2335.5,0.42815]
[1725985277500,1.66339131,2335.7,2335.6,0.42813]
[1725985277501,1.10792914,2335.7,2335.6,0.42813]
[1725985277708,1.10792914,2335.7,2335.5,3.77814]
[1725985278000,1.10792914,2335.7,2335.5,0.42814]
[1725985278202,2.77132045,2335.7,2335.5,0.42814]
[1725985278403,1.10792914,2335.7,2335.3,3.35]
[1725985278605,1.53603914,2335.7,2335.5,0.42814]
[1725985278802,1.53603914,2335.7,2335.4,34.6]
[1725985278995,1.10792914,2335.7,2335.5,0.42814]
[1725985280006,1.53602914,2335.8,2335.5,0.42814]
[1725985280609,0.42811,2335.7,2335.5,0.42814]
[1725985280906,1.53602914,2335.8,2335.5,0.42814]
[1725985281497,1.10792914,2335.8,2335.6,0.42812]
[1725985281801,1.53602914,2335.8,2335.5,0.42814]
[1725985282900,1.10792914,2335.8,2335.4,34.6]
[1725985283102,0.42811,2335.7,2335.5,0.42813]
[1725985283296,1.53602914,2335.8,2335.6,0.42812]
[1725985283504,0.4281,2335.8,2335.6,0.42812]
[1725985284204,0.4281,2335.8,2335.7,0.42811]
[1725985284403,4.2816,2335.8,2335.7,0.42811]
[1725985284604,2.69561914,2335.9,2335.7,0.64255941]
[1725985285107,0.42809,2335.8,2335.7,0.64255941]
[1725985285506,2.69560914,2335.9,2335.7,0.64255941]
[1725985285807,0.42809,2335.8,2335.7,0.21444941]
[1725985286008,4.2808,2335.8,2335.5,0.42814]
[1725985286317,0.42812,2335.7,2335.5,0.42814]
[1725985286503,0.42813,2335.6,2335.5,0.42814]
[1725985286812,0.42813,2335.6,2335.3,3.35]
[1725985286813,0.42815,2335.5,2335.3,0.42817]
[1725985287004,0.42819,2335.3,2335.2,0.4282]
[1725985287311,0.8155,2335.4,2335.2,0.42819]
[1725985287812,1.24368,2335.4,2335.2,0.42819]
[1725985288314,1.24368,2335.4,2335.3,0.42818]
[1725985288908,0.42821,2335.2,2335.1,0.42821]
[1725985289210,0.42821,2335.2,2335.1,0.42822]
[1725985289402,0.42821,2335.2,2334.8,0.4133]
[1725985289403,4.2824,2335.2,2334.8,3.35]
[1725985289609,0.42825,2335.0,2334.8,35.02828]
[1725985289906,0.42825,2335.0,2334.7,4.195]
[1725985289907,1.18936,2334.9,2334.7,4.62329]
[1725985290210,0.42829,2334.7,2334.6,3.35]
[1725985290404,0.42829,2334.7,2333.9,2.14213]
[1725985290405,4.2832,2334.8,2334.3,34.6]
[1725985290604,1.10792914,2334.6,2333.8,7.545]
[1725985290809,0.42837,2334.3,2334.0,3.77841]
[1725985291310,0.3865,2334.4,2334.2,3.35]
[1725985291511,0.3865,2334.4,2334.2,3.77838]
[1725985291710,0.3847,2334.3,2334.0,3.35]
[1725985291911,0.3847,2334.3,2334.1,0.42839]
[1725985292216,0.3847,2334.3,2334.2,34.6]
[1725985293211,0.3847,2334.3,2334.2,38.37839]
[1725985294312,4.6687,2334.3,2334.0,0.42841]
[1725985294518,0.81308,2334.3,2333.9,3.77843]
[1725985294705,0.4284,2334.2,2333.9,3.35]
[1725985295015,0.81308,2334.3,2333.9,38.37843]
[1725985295216,0.42839,2334.2,2333.9,38.37843]
[1725985295521,0.42841,2334.1,2333.9,37.95]
[1725985295712,0.42841,2334.1,2333.9,3.35]
[1725985295908,0.3855,2334.0,2333.9,3.35]
[1725985296105,0.81392,2334.0,2333.9,3.35]
[1725985296312,0.42845,2333.9,2333.7,3.7379]
[1725985296508,0.83835,2333.9,2333.7,3.35]
[1725985296919,0.83835,2333.9,2333.7,3.77847]
[1725985297210,0.83835,2333.9,2333.7,3.35]
[1725985297411,0.4099,2333.9,2333.7,3.77847]
[1725985297616,0.4099,2333.9,2333.8,0.42846]
[1725985298208,0.3855,2334.0,2333.9,0.42844]
[1725985298510,1.66339131,2334.2,2334.0,0.42841]
[1725985298511,1.91701914,2334.2,2334.0,0.42841]
[1725985298714,2.29091914,2334.2,2334.0,0.42841]
[1725985298915,2.29091914,2334.2,2333.9,0.42843]
[1725985299112,0.42844,2334.0,2333.8,0.42845]
[1725985299418,0.42841,2334.1,2333.9,0.42844]
[1725985300120,1.53633914,2334.1,2333.9,0.42844]
[1725985300316,0.42841,2334.1,2333.9,0.42844]
[1725985300615,1.53633914,2334.1,2333.9,0.42844]
[1725985301007,0.42841,2334.1,2334.0,0.42842]
[1725985301206,1.86252914,2334.2,2333.8,3.35]
[1725985301207,1.86252914,2334.2,2334.1,0.4284]
[1725985301412,0.81307,2334.3,2334.0,3.35]
[1725985301611,1.49262914,2334.3,2334.2,0.42839]
[1725985301920,1.49262914,2334.3,2334.2,35.02839]
[1725985302306,0.81307,2334.3,2334.2,35.02839]
[1725985302506,1.92099914,2334.3,2334.2,35.02839]
[1725985302718,1.92099914,2334.3,2334.2,34.6]
[1725985303916,1.49262914,2334.3,2334.2,35.02839]
[1725985304113,1.10792914,2334.4,2334.3,0.42837]
[1725985304315,1.53626914,2334.5,2334.4,0.42835]
[1725985307813,0.42835,2334.4,2334.3,0.3818]
[1725985308009,0.42837,2334.3,2334.2,0.42837]
[1725985308325,1.53551813,2334.3,2334.2,0.42837]
[1725985308620,1.10714813,2334.3,2334.0,0.3911]
[1725985308809,0.4284,2334.1,2334.0,0.3911]
[1725985309919,0.4284,2334.1,2334.0,0.81952]
[1725985311511,1.48224813,2334.2,2334.0,0.3911]
[1725985311718,0.4284,2334.1,2334.0,0.81951]
[1725985312020,0.8035,2334.2,2334.1,0.4284]
[1725985312324,0.80349,2334.2,2334.1,0.4284]
[1725985312926,0.42842,2334.0,2333.9,35.02843]
[1725985313114,0.42842,2334.0,2333.9,0.42844]
[1725985313718,0.42842,2334.0,2333.9,35.02844]
[1725985313920,0.42842,2334.0,2333.9,34.6]
[1725985314516,0.42842,2334.0,2333.9,0.42844]
[1725985315618,0.42844,2333.9,2333.8,35.42845]
[1725985316330,0.42843,2334.0,2333.9,0.42843]
[1725985316715,0.3751,2334.2,2334.0,0.42841]
[1725985316914,0.80349,2334.2,2334.1,0.4284]
[1725985317921,0.42844,2334.0,2333.9,0.42844]
[1725985318323,0.3944,2334.0,2333.9,0.42844]
[1725985318522,0.42842,2334.0,2333.9,0.42844]
[1725985320626,0.7695,2334.2,2333.9,3.35]
[1725985320829,0.42837,2334.3,2334.2,0.42837]
[1725985321021,1.10714813,2334.4,2334.3,0.42837]
[1725985321221,0.42835,2334.4,2334.1,3.35]
[1725985321430,0.42835,2334.4,2334.3,0.42835]
[1725985321728,0.42837,2334.3,2334.2,0.3805]
[1725985321927,1.24917,2334.3,2334.2,0.3805]
[1725985322629,0.4284,2334.1,2334.0,0.42841]
[1725985322833,0.42844,2334.0,2333.9,0.42844]
[1725985323029,0.83454,2334.0,2333.9,0.42844]
[1725985323427,0.42844,2333.9,2333.8,35.02845]
[1725985323625,0.83454,2334.0,2333.8,35.02845]
[1725985323821,0.4061,2334.0,2333.8,35.02845]
[1725985324026,0.83453,2334.0,2333.9,0.42844]
[1725985324228,0.83453,2334.0,2333.8,34.6]
[1725985324427,1.47719,2334.0,2333.6,0.5]
[1725985324623,0.42848,2333.8,2333.6,0.9285]
[1725985324823,0.42848,2333.7,2333.6,0.5]
[1725985325035,0.42848,2333.7,2333.6,35.1]
[1725985325332,0.42856,2333.3,2333.0,4.8396]
[1725985325537,10.71328,2333.7,2333.1,0.42858]
[1725985325538,3.77854,2333.4,2333.1,0.42858]
[1725985325829,0.4099,2333.3,2332.9,3.35]
[1725985326030,3.7298,2333.8,2333.1,3.35]
[1725985326031,0.3798,2333.8,2333.1,3.35]
[1725985326333,10.95685579,2333.7,2333.1,3.35]
[1725985326639,0.42854,2333.4,2333.1,3.77859]
[1725985326834,0.42854,2333.4,2333.1,3.35]
[1725985327532,0.42856,2333.3,2333.1,3.35]
[1725985327731,0.83046,2333.3,2333.1,3.35]
[1725985327928,0.4019,2333.3,2333.1,3.77858]
[1725985328131,0.42854,2333.4,2333.1,3.77858]
[1725985328331,0.42854,2333.4,2333.1,3.35]
[1725985329029,0.42853,2333.5,2333.1,3.35]
[1725985329230,0.42853,2333.5,2333.2,0.42857]
[1725985329427,0.4099,2333.7,2333.4,3.35]
[1725985329640,0.4099,2333.7,2333.6,0.4285]
[1725985329830,0.42839,2334.2,2333.9,0.42843]
[1725985330239,0.42839,2334.2,2333.8,3.35]
[1725985330438,0.42839,2334.2,2333.9,34.6]
[1725985330738,0.42839,2334.2,2333.9,35.02842]
[1725985330924,0.42839,2334.2,2334.0,0.4029]
[1725985331234,0.80828,2334.3,2334.0,0.83131]
[1725985331436,0.80828,2334.3,2334.1,0.4284]
[1725985332039,0.42839,2334.2,2334.0,0.83131]
[1725985332728,0.80828,2334.3,2334.1,0.4284]
[1725985333334,0.80828,2334.3,2334.0,1.20631]
[1725985333531,0.80828,2334.3,2334.1,0.4284]
[1725985333932,0.80828,2334.3,2334.0,1.20631]
[1725985334137,0.3799,2334.3,2334.0,0.7779]
[1725985334339,0.3799,2334.3,2334.1,0.4284]
[1725985334639,0.80827,2334.3,2334.0,1.20631]
[1725985335241,0.42836,2334.4,2334.1,0.4284]
[1725985335439,0.3838,2334.6,2334.2,3.35]
[1725985335944,0.81212,2334.6,2334.3,0.42837]
[1725985337734,0.81212,2334.6,2334.4,0.42835]
[1725985338042,0.81212,2334.6,2334.2,3.35]
[1725985338338,0.81212,2334.6,2334.4,0.42835]
[1725985338842,0.3838,2334.6,2334.2,3.35]
[1725985339044,0.42828,2334.8,2334.6,0.4283]
[1725985339541,0.42824,2335.0,2334.7,0.4136]
[1725985339737,0.42824,2335.0,2334.8,0.42827]
[1725985340040,0.42826,2334.9,2334.7,0.84188]
[1725985340240,0.42825,2335.0,2334.8,0.42827]
[1725985340546,0.8431,2335.2,2335.0,0.42823]
[1725985340745,0.42822,2335.1,2334.9,0.42825]
[1725985341442,0.4149,2335.2,2334.8,3.35]
[1725985341647,2.47913581,2335.1,2335.0,0.42823]
[1725985341843,5.26296793,2335.1,2335.0,0.42823]
[1725985342239,5.26296793,2335.1,2334.9,0.42825]
[1725985342433,5.26296793,2335.1,2335.0,0.42824]
[1725985342946,5.26296793,2335.1,2334.9,0.42825]
[1725985343245,2.22693511,2335.0,2334.9,0.42825]
[1725985343441,1.67053432,2335.0,2334.9,0.42825]
[1725985343637,1.11300732,2335.1,2335.0,0.42824]
[1725985343838,1.11300732,2335.1,2335.0,3.77824]
[1725985344252,1.67053432,2335.1,2334.7,3.35]
[1725985344547,1.11316971,2334.8,2334.7,3.77829]
[1725985346148,1.66975456,2334.8,2334.7,3.77829]
[1725985346446,1.11257066,2334.8,2334.7,3.77829]
[1725985347844,1.11257066,2334.9,2334.8,0.42828]
[1725985348150,1.66975456,2334.9,2334.8,0.42828]
[1725985348639,2.09801456,2334.9,2334.7,3.35]
[1725985348838,1.11169965,2334.8,2334.7,3.77828]
[1725985349147,1.11169965,2334.9,2334.8,0.42828]
[1725985350143,2.08895456,2335.0,2334.9,0.42826]
[1725985350343,2.3031817,2335.0,2334.9,0.42826]
[1725985350550,2.7314317,2335.0,2334.8,0.42827]
[1725985350751,1.11121701,2334.9,2334.8,0.42827]
[1725985355638,1.11121701,2334.9,2334.8,0.83707]
[1725985356049,2.78097157,2335.0,2334.9,0.42826]
[1725985356351,1.66975456,2335.0,2334.9,0.42826]
[1725985356655,1.11130061,2335.0,2334.9,8.06066]
[1725985356951,1.11130061,2335.1,2335.0,0.42824]
[1725985357142,1.66975456,2335.2,2335.0,4.2824]
[1725985357345,1.11139379,2335.1,2335.0,3.77824]
[1725985357554,1.11139379,2335.2,2335.1,0.42822]
[1725985357745,1.11135246,2335.2,2335.0,3.35]
[1725985357948,1.11135246,2335.2,2335.1,0.42822]
[1725985358445,1.11135246,2335.4,2335.3,0.42818]
[1725985358947,1.11135246,2335.4,2335.0,3.35]
[1725985359156,1.11135246,2335.3,2335.2,0.4282]
[1725985359743,1.11135246,2335.3,2335.0,0.42823]
[1725985359744,0.42821,2335.2,2335.0,0.42823]
[1725985359946,1.11135246,2335.2,2334.9,3.7393]
[1725985360148,1.11135246,2335.2,2335.0,0.42824]
[1725985360149,0.4186,2335.1,2335.0,0.42824]
[1725985360854,1.52995246,2335.1,2334.6,3.35]
[1725985361056,1.51635246,2335.0,2334.6,0.3955]
[1725985361250,1.53961246,2334.9,2334.6,3.7455]
[1725985361556,1.11135246,2334.8,2334.7,0.42829]
[1725985362059,1.11135246,2334.9,2334.8,0.42828]
[1725985362261,2.07475456,2335.0,2334.9,0.42826]
[1725985362850,2.07475456,2335.0,2334.8,3.35]
[1725985363054,1.11104347,2334.9,2334.8,3.77828]
[1725985363762,1.11104347,2334.9,2334.8,8.06148]
[1725985365342,2.22693511,2335.1,2335.0,0.42824]
[1725985365546,2.44115211,2335.1,2335.0,0.42824]
[1725985365950,2.86938211,2335.1,2334.9,0.42825]
[1725985366156,1.88223665,2335.0,2334.9,0.42825]
[1725985366558,0.214217,2335.0,2334.9,4.71065]
[1725985366759,1.66816391,2335.0,2334.9,4.71065]
[1725985366963,1.88238091,2335.0,2334.9,4.71065]
[1725985367465,1.88238091,2335.0,2334.9,4.2824]
[1725985367760,1.88238091,2335.0,2334.9,4.71066]
[1725985367761,0.214217,2335.0,2334.9,4.71066]
[1725985368056,0.21421958,2335.1,2335.0,0.42824]
[1725985368260,2.22418832,2335.1,2335.0,0.42824]
[1725985368464,2.43840882,2335.1,2335.0,0.42824]
[1725985368763,2.86662882,2335.1,2334.9,0.42824]
[1725985368952,0.2142205,2335.0,2334.9,0.42824]
[1725985369151,2.22418832,2335.0,2334.9,0.42826]
[1725985369449,2.81760882,2335.0,2334.9,0.42826]
[1725985369657,2.81760882,2335.0,2334.8,3.35]
[1725985369658,3.24584882,2335.0,2334.8,3.77826]
[1725985369963,3.27086882,2334.9,2334.7,3.77828]
[1725985370156,2.08484352,2334.8,2334.7,3.77829]
[1725985370759,2.08484352,2334.8,2334.4,34.6]
[1725985370760,2.29907394,2334.8,2334.4,34.6]
[1725985370965,2.29907394,2334.8,2334.1,4.411]
[1725985370966,1.11254238,2334.5,2334.3,3.7411]
[1725985371270,1.11254238,2334.5,2334.4,0.42835]
[1725985371459,2.47634357,2334.5,2334.3,38.3411]
[1725985371658,2.47634357,2334.5,2334.3,38.37836]
[1725985371659,1.66881357,2334.4,2334.3,38.37836]
[1725985371961,1.88309063,2334.4,2334.3,38.37836]
[1725985372154,1.66881357,2334.4,2334.3,38.37836]
[1725985372461,2.04801357,2334.5,2334.4,0.42835]
[1725985372663,2.26156257,2334.5,2334.4,0.42835]
[1725985372859,2.2615627,2334.5,2334.4,0.42835]
[1725985373162,2.2615627,2334.5,2334.3,38.37835]
[1725985373163,2.81764766,2334.5,2334.3,38.37835]
[1725985373364,1.66824204,2334.4,2334.3,38.37835]
[1725985373863,1.66824204,2334.4,2334.3,42.66235]
[1725985375563,1.11227948,2334.4,2334.3,43.33189621]
[1725985376466,1.66824204,2334.5,2334.3,42.90354621]
[1725985376669,1.11248085,2334.4,2334.3,35.02837]
[1725985376962,1.11248085,2334.4,2334.3,35.69792787]
[1725985377166,1.11248085,2334.4,2334.3,41.55754219]
[1725985377664,1.11248085,2334.4,2334.3,40.48625004]
[1725985378471,1.11248085,2334.4,2334.3,41.55755206]
[1725985378660,1.11248085,2334.4,2334.3,41.05321849]
[1725985378965,1.11248085,2334.4,2334.3,44.40321849]
[1725985379158,1.11248085,2334.4,2334.3,51.97847043]
[1725985379360,1.11248085,2334.4,2334.3,51.41185903]
[1725985380061,1.11248085,2334.4,2334.3,52.48278903]
[1725985380754,1.11248085,2334.4,2334.3,53.82185887]
[1725985381065,1.11248085,2334.4,2334.3,49.16669194]
[1725985381276,1.66824204,2334.4,2334.3,49.16669194]
[1725985381563,1.66824204,2334.4,2334.3,52.24666548]
[1725985381758,1.66824204,2334.4,2334.3,50.90756079]
[1725985381954,1.11319501,2334.4,2334.3,54.89286368]
[1725985382157,1.11319501,2334.5,2334.4,1.49923]
[1725985382366,1.11319501,2334.6,2334.5,1.49916]
[1725985382558,1.66824204,2334.7,2334.5,12.28834174]
[1725985382866,1.66824204,2334.6,2334.5,4.84916]
[1725985383061,1.66824204,2334.6,2334.5,18.71626273]
[1725985384269,1.66824204,2334.6,2334.5,15.13236]
[1725985384457,1.66824204,2334.6,2334.5,15.80185844]
[1725985384661,1.66824204,2334.6,2334.5,11.14122284]
[1725985384860,1.66824204,2334.6,2334.5,11.64551662]
[1725985385859,2.22418832,2334.7,2334.6,0.42831]
[1725985386164,2.43842797,2334.7,2334.6,8.29547797]
[1725985386368,0.21423965,2334.7,2334.6,6.95649973]
[1725985386567,2.78383212,2334.8,2334.7,0.42829]
[1725985386868,5.32323978,2334.8,2334.7,6.02327973]
[1725985387466,2.44169636,2334.8,2334.7,6.02327973]
[1725985387669,2.22745118,2334.8,2334.7,12.71601737]
[1725985387863,0.21424518,2334.8,2334.7,12.71601737]
[1725985388061,2.9980483,2335.0,2334.9,0.42826]
[1725985388260,0.21422502,2335.0,2334.9,6.02314031]
[1725985388563,2.4414463,2335.0,2334.9,7.36195624]
[1725985388763,2.4414463,2335.0,2334.9,11.64435624]
[1725985388764,0.21422502,2335.0,2334.9,11.64435624]
[1725985389473,2.4414463,2335.0,2334.9,11.64435624]
[1725985389662,2.4414463,2335.0,2334.9,7.36195624]
[1725985389864,2.4414463,2335.0,2334.9,1.17375014]
[1725985389865,5.5501717,2335.0,2334.9,1.17375014]
[1725985390164,7.2629646,2335.0,2334.9,0.66945636]
[1725985390468,2.9805646,2335.0,2334.9,0.66945636]
[1725985392067,2.9805646,2335.0,2334.9,0.66948354]
[1725985392364,2.9805646,2335.0,2334.9,6.02317416]
[1725985392365,5.33648693,2335.0,2334.9,6.02317416]
[1725985392770,5.33648693,2335.0,2334.9,4.95201568]
[1725985393175,5.33653233,2335.0,2334.9,4.95201463]
[1725985393365,2.78416233,2335.0,2334.9,6.02313348]
[1725985393975,2.78416233,2335.0,2334.9,4.28253109]
[1725985394270,2.78416233,2335.0,2334.9,5.09053017]
[1725985394465,3.21240233,2335.0,2334.9,4.01943468]
[1725985394663,3.21240233,2335.0,2334.9,1.17369785]
[1725985394867,3.21240233,2335.0,2334.9,0.66943468]
[1725985396374,0.42824,2335.0,2334.9,0.66943468]
[1725985396980,1.1807,2335.3,2334.9,3.35]
[1725985397171,0.4282,2335.2,2335.1,3.77821]
[1725985397367,0.42822,2335.1,2335.0,3.77823]
[1725985397668,1.1807,2335.3,2335.1,0.66942126]
[1725985397669,0.42821,2335.2,2335.1,0.66942126]
[1725985398065,4.71061,2335.2,2335.1,0.66942126]
[1725985398270,0.42821,2335.2,2335.1,0.66942126]
[1725985398572,4.71061,2335.2,2335.1,0.66942126]
[1725985398872,1.49878,2335.1,2335.0,0.50425249]
[1725985399175,0.42824,2335.0,2334.9,0.50425395]
[1725985399574,5.78125,2335.0,2334.9,0.50425395]
[1725985400177,0.42824,2335.0,2334.9,0.50425395]
[1725985400573,2.97997281,2335.0,2334.9,0.50425395]
[1725985400975,7.26237281,2335.0,2334.9,0.50425395]
[1725985403077,2.97997281,2335.0,2334.9,0.50425395]
[1725985403277,2.55173281,2335.0,2334.9,0.93251395]
[1725985403475,2.55173281,2335.0,2334.9,5.19259693]
[1725985403780,2.55173281,2335.0,2334.9,6.26257207]
[1725985404275,2.55173281,2335.0,2334.9,5.75828873]
[1725985404478,2.55173281,2335.0,2334.9,6.26254491]
[1725985404776,2.55173281,2335.0,2334.9,7.59999117]
[1725985405179,2.55173281,2335.0,2334.9,7.59999438]
[1725985405371,2.55173281,2335.0,2334.9,7.59996774]
[1725985405682,2.44113545,2335.0,2334.9,7.59996774]
[1725985406078,1.88451059,2335.0,2334.9,12.95301774]
[1725985406376,1.67027103,2335.0,2334.9,18.95301774]
[1725985406677,2.22689589,2335.2,2334.9,18.95301774]
[1725985406678,2.22689589,2335.2,2335.1,0.42822]
[1725985406875,2.22689589,2335.2,2335.1,6.69109779]
[1725985407072,2.22689589,2335.2,2335.1,44.23485096]
[1725985407276,2.96490509,2335.5,2335.1,45.14526094]
[1725985407277,2.78361987,2335.4,2335.1,45.14526094]
[1725985407477,2.78361987,2335.4,2335.3,3.77818]
[1725985407675,2.99780495,2335.4,2335.3,3.77818]
[1725985407880,5.12403768,2335.4,2335.3,3.77818]
[1725985408184,5.33822276,2335.4,2335.3,4.28239668]
[1725985408572,5.33822276,2335.4,2335.3,3.35]
[1725985409173,2.55460289,2335.4,2335.3,3.35]
[1725985409379,2.7828906,2335.4,2335.3,3.77818]
[1725985409580,5.33749349,2335.4,2335.3,3.77818]
[1725985410083,5.33609763,2335.4,2335.3,3.77818]
[1725985410777,5.33609763,2335.4,2335.3,4.44752764]
[1725985411170,5.33609763,2335.4,2335.3,4.44753595]
[1725985411379,5.33609763,2335.4,2335.3,4.44752603]
[1725985411577,1.88352934,2335.4,2335.3,12.0956762]
[1725985411788,1.66933814,2335.4,2335.3,12.59987477]
[1725985411981,1.66933814,2335.5,2335.4,0.42817]
[1725985412179,1.66933814,2335.5,2335.4,2.67259477]
[1725985412385,1.66933814,2335.5,2335.4,6.95419477]
[1725985412683,1.66933814,2335.6,2335.5,0.42815]
[1725985412878,1.66933814,2335.6,2335.5,6.02241817]
[1725985413289,1.66933814,2335.6,2335.5,5.51787603]
[1725985413477,1.11189841,2335.6,2335.5,7.09270157]
[1725985413677,1.11189841,2335.8,2335.7,0.42811]
[1725985413883,1.66933814,2335.9,2335.8,0.42809]
[1725985413884,0.84,2335.9,2335.8,0.42809]
[1725985414082,2.50933814,2335.9,2335.8,1.09743603]
[1725985414283,2.72345449,2335.9,2335.8,1.09743603]
[1725985414487,1.95163935,2335.9,2335.8,0.3853]
[1725985414688,1.95163935,2335.9,2335.8,1.48251511]
[1725985414689,2.50933814,2335.9,2335.8,1.48251511]
[1725985414881,2.72346905,2335.9,2335.8,0.81339]
[1725985415476,2.50933814,2335.9,2335.8,0.81339]
[1725985415682,1.95096892,2335.9,2335.8,0.81339]
[1725985415882,2.50933814,2335.9,2335.8,0.81339]
[1725985416295,1.66933814,2335.9,2335.8,0.81339]
[1725985416481,1.11097924,2335.9,2335.8,0.7966]
[1725985416686,1.11097924,2335.9,2335.8,1.22469]
[1725985416883,1.66933814,2336.0,2335.9,0.42807]
[1725985417081,1.66933814,2336.0,2335.9,3.77807]
[1725985417381,5.95013814,2336.0,2335.9,3.77807]
[1725985417781,4.2808,2336.0,2335.9,3.77807]
[1725985418092,5.39114095,2336.0,2335.9,3.77807]
[1725985418391,5.39106872,2336.0,2335.9,3.77807]
[1725985422380,4.2808,2336.0,2335.9,3.77807]
[1725985422986,5.39106872,2336.0,2335.9,3.77807]
[1725985423391,4.2808,2336.0,2335.9,3.77807]
[1725985423884,5.39106872,2336.0,2335.9,3.77807]
[1725985424092,1.11026872,2336.0,2335.9,3.77807]
[1725985425391,1.11026872,2336.1,2336.0,0.42806]
[1725985425591,1.66933814,2336.1,2336.0,0.42806]
[1725985425792,5.95013814,2336.1,2336.0,0.42806]
[1725985426297,1.10894718,2336.1,2336.0,0.42806]
[1725985426590,1.10890954,2336.1,2336.0,0.42806]
[1725985426790,1.66933814,2336.1,2336.0,0.42806]
[1725985426986,1.10890623,2336.1,2336.0,0.42806]
[1725985427491,6.37817814,2336.1,2335.9,4.16647]
[1725985427695,1.53688927,2336.1,2335.9,3.77807]
[1725985427988,1.53690927,2336.0,2335.9,3.35]
[1725985428381,1.53690927,2336.0,2335.9,3.77807]
[1725985428785,5.81770927,2336.0,2335.9,3.35]
[1725985428987,1.53662741,2336.0,2335.9,3.35]
[1725985429189,1.10856741,2336.0,2335.9,3.77807]
[1725985429584,1.53662741,2336.0,2335.9,3.35]
[1725985429787,1.53662741,2336.0,2335.8,0.42808]
[1725985429788,11.38936741,2336.0,2335.6,3.77811]
[1725985430080,11.38936741,2336.0,2335.7,0.42811]
[1725985430081,1.53664104,2335.8,2335.7,0.42811]
[1725985430304,2.09743814,2335.8,2335.7,0.42811]
[1725985430499,7.19643814,2335.8,2335.7,0.42811]
[1725985430795,7.59393814,2335.8,2335.7,0.42811]
[1725985431693,7.80810042,2335.8,2335.7,0.42811]
[1725985432096,7.59393814,2335.8,2335.7,0.42811]
[1725985432295,7.80809971,2335.8,2335.7,0.42811]
[1725985432495,7.80809971,2335.8,2335.6,3.77812]
[1725985432496,0.42811,2335.7,2335.6,3.77812]
[1725985432698,2.09190516,2335.7,2335.6,3.77812]
[1725985432889,1.66379516,2335.7,2335.6,3.77812]
[1725985433288,2.09190516,2335.7,2335.6,3.77812]
[1725985433498,2.30607233,2335.7,2335.6,3.77813]
[1725985433693,2.30607325,2335.7,2335.6,3.77813]
[1725985434193,2.30607345,2335.7,2335.6,3.35]
[1725985434398,0.21416829,2335.7,2335.5,0.42814]
[1725985434598,1.66525264,2335.6,2335.5,0.42814]
[1725985434801,2.09339264,2335.6,2335.5,0.42814]
[1725985435501,1.66525264,2335.6,2335.5,0.42814]
[1725985435704,1.11044005,2335.6,2335.5,0.42815]
[1725985435884,1.11044005,2335.6,2335.5,1.49853]
[1725985436088,1.11044005,2335.7,2335.6,0.42813]
[1725985436295,1.11044005,2335.7,2335.6,3.77813]
[1725985438691,2.48411628,2335.8,2335.7,0.42811]
[1725985438997,1.03154028,2335.8,2335.7,0.42811]
[1725985440699,1.03154028,2335.8,2335.7,0.83461]
[1725985441696,5.52709,2335.8,2335.6,3.35]
[1725985441995,1.66655797,2335.7,2335.6,3.77811]
[1725985442206,1.11096342,2335.7,2335.6,4.84846]
[1725985442392,1.11096342,2335.8,2335.7,1.49839]
[1725985443401,1.11096342,2336.0,2335.9,0.42807]
[1725985443806,1.66655797,2336.1,2336.0,0.42806]
[1725985445103,1.11166343,2336.1,2336.0,0.42806]
[1725985445601,1.11166343,2336.1,2336.0,9.12901]
[1725985445806,1.11166343,2336.2,2336.1,0.42804]
[1725985446203,1.11166343,2336.2,2336.1,39.30884]
[1725985446704,1.11166343,2336.2,2336.1,39.97785639]
[1725985447405,1.11202326,2336.2,2336.1,39.97785639]
[1725985448001,1.66655797,2336.2,2336.1,35.02804]
[1725985448207,2.49925797,2336.2,2336.1,35.02804]
[1725985448410,1.04679446,2336.2,2336.1,35.02804]
[1725985448605,3.27248994,2336.2,2336.1,35.02804]
[1725985448805,0.21411014,2336.2,2336.1,35.02804]
[1725985449103,2.2256798,2336.3,2336.2,0.42802]